[Event "Titled Tuesday Blitz June 20 Early 2023"]
[White "Luo, Terry"]
[Black "Stepanencu, Nicodim-Cosmin"]
[WhiteFideId "30931045"]
[BlackFideId "1256220"]
[WhiteElo "2265"]
[BlackElo "2154"]
[Result "0-1"]
[Round "3"]
[TimeControl "180+2"]
[Date "2023.06.20"]
[WhiteClock "0:00:30"]
[BlackClock "0:00:44"]
[Board "66"]

1. d4 {[%clk 0:03:00]}  g6 {[%clk 0:02:58]} 2. c4 {[%clk 0:02:59]}  Bg7 {[%clk 0:02:58]} 3. e4 {[%clk 0:03:00]}  c5 {[%clk 0:02:57]} 4. d5 {[%clk 0:03:00]}  d6 {[%clk 0:02:55]} 5. h3 {[%clk 0:03:01]}  Nf6 {[%clk 0:02:55]} 6. Nc3 {[%clk 0:03:01]}  a6 {[%clk 0:02:55]} 7. a4 {[%clk 0:03:00]}  e6 {[%clk 0:02:51]} 8. Nf3 {[%clk 0:02:59]}  exd5 {[%clk 0:02:50]} 9. exd5 {[%clk 0:03:00]}  O-O {[%clk 0:02:51]} 10. Bd3 {[%clk 0:03:01]}  Re8+ {[%clk 0:02:51]} 11. Be3 {[%clk 0:03:01]}  Nbd7 {[%clk 0:02:46]} 12. O-O {[%clk 0:03:00]}  b6 {[%clk 0:02:42]} 13. Qd2 {[%clk 0:02:57]}  Bb7 {[%clk 0:02:32]} 14. Bf4 {[%clk 0:02:51]}  Ne5 {[%clk 0:02:23]} 15. Nxe5 {[%clk 0:02:42]}  dxe5 {[%clk 0:02:24]} 16. Bg5 {[%clk 0:02:43]}  h6 {[%clk 0:02:19]} 17. Bxh6 {[%clk 0:02:42]}  Bh8 {[%clk 0:02:17]} 18. Bg5 {[%clk 0:02:42]}  Qd6 {[%clk 0:02:14]} 19. Rae1 {[%clk 0:02:39]}  Nh7 {[%clk 0:02:10]} 20. Bh6 {[%clk 0:02:32]}  f5 {[%clk 0:02:08]} 21. Bb1 {[%clk 0:02:30]}  Qf6 {[%clk 0:02:01]} 22. g4 {[%clk 0:02:08]}  e4 {[%clk 0:01:50]} 23. f3 {[%clk 0:02:04]}  Qh4 {[%clk 0:01:44]} 24. fxe4 {[%clk 0:01:56]}  fxg4 {[%clk 0:01:30]} 25. hxg4 {[%clk 0:01:44]}  g5 {[%clk 0:01:27]} 26. Qh2 {[%clk 0:01:40]}  Qxg4+ {[%clk 0:01:25]} 27. Kh1 {[%clk 0:01:39]}  Be5 {[%clk 0:01:24]} 28. Qg2 {[%clk 0:00:30]}  Qh4+ {[%clk 0:01:20]} 29. Kg1 {[%clk 0:00:31]}  Bd4+ {[%clk 0:01:21]} 30. Rf2 {[%clk 0:00:30]}  Qxh6 {[%clk 0:00:57]} 31. e5 {[%clk 0:00:30]}  Rf8 {[%clk 0:00:48]} 32. Rf1 {[%clk 0:00:30]}  Rxf2 {[%clk 0:00:44]} 33. Rxf2 {[%clk 0:00:30]} 0-1


[Site "https://www.chess.com"]

[Event "Titled Tuesday Blitz June 20 Early 2023"]
[White "i_like_explosions"]
[Black "Eugene, Floryan"]
[BlackFideId "20694784"]
[WhiteElo "2400"]
[BlackElo "2369"]
[Result "0-1"]
[Round "3"]
[TimeControl "180+2"]
[Date "2023.06.20"]
[WhiteClock "0:00:38"]
[BlackClock "0:00:26"]
[Board "67"]

1. d4 {[%clk 0:03:00]}  f5 {[%clk 0:02:59]} 2. g3 {[%clk 0:03:00]}  Nf6 {[%clk 0:02:58]} 3. Bg2 {[%clk 0:03:00]}  g6 {[%clk 0:02:59]} 4. c4 {[%clk 0:03:00]}  Bg7 {[%clk 0:02:59]} 5. Nf3 {[%clk 0:03:00]}  O-O {[%clk 0:03:00]} 6. O-O {[%clk 0:03:01]}  d6 {[%clk 0:03:01]} 7. Nc3 {[%clk 0:03:01]}  c6 {[%clk 0:03:00]} 8. b3 {[%clk 0:03:00]}  Qc7 {[%clk 0:02:56]} 9. Qc2 {[%clk 0:02:59]}  e5 {[%clk 0:02:52]} 10. dxe5 {[%clk 0:02:59]}  dxe5 {[%clk 0:02:53]} 11. Ba3 {[%clk 0:02:57]}  Re8 {[%clk 0:02:49]} 12. e4 {[%clk 0:02:54]}  Nxe4 {[%clk 0:02:44]} 13. Nxe4 {[%clk 0:02:55]}  fxe4 {[%clk 0:02:45]} 14. Qxe4 {[%clk 0:02:53]}  Bf5 {[%clk 0:02:44]} 15. Qe2 {[%clk 0:02:35]}  e4 {[%clk 0:01:53]} 16. Rad1 {[%clk 0:02:34]}  Nd7 {[%clk 0:01:44]} 17. Ng5 {[%clk 0:02:21]}  Nf6 {[%clk 0:01:42]} 18. Bd6 {[%clk 0:02:15]}  Qa5 {[%clk 0:01:39]} 19. Bh3 {[%clk 0:01:15]}  h6 {[%clk 0:01:28]} 20. Bxf5 {[%clk 0:01:15]}  Qxf5 {[%clk 0:01:23]} 21. g4 {[%clk 0:00:58]}  Qxg4+ {[%clk 0:01:10]} 22. Qxg4 {[%clk 0:00:57]}  Nxg4 {[%clk 0:01:11]} 23. Nh3 {[%clk 0:00:57]}  e3 {[%clk 0:01:00]} 24. Rfe1 {[%clk 0:00:54]}  Bc3 {[%clk 0:00:29]} 25. Re2 {[%clk 0:00:42]}  exf2+ {[%clk 0:00:29]} 26. Kf1 {[%clk 0:00:42]}  Ne3+ {[%clk 0:00:28]} 27. Rxe3 {[%clk 0:00:40]}  Rxe3 {[%clk 0:00:29]} 28. Nxf2 {[%clk 0:00:40]}  Rd8 {[%clk 0:00:27]} 29. Bc5 {[%clk 0:00:38]}  Rxd1+ {[%clk 0:00:26]} 0-1


[Site "https://www.chess.com"]

[Event "Titled Tuesday Blitz June 20 Early 2023"]
[White "Arat, Ufuk Sezen"]
[Black "Shtompel, Yuriy"]
[WhiteFideId "6309089"]
[BlackFideId "14168278"]
[WhiteElo "2289"]
[BlackElo "1844"]
[Result "1-0"]
[Round "3"]
[TimeControl "180+2"]
[Date "2023.06.20"]
[WhiteClock "0:00:30"]
[BlackClock "0:00:01"]
[Board "69"]

1. e4 {[%clk 0:03:00]}  c5 {[%clk 0:02:59]} 2. Nf3 {[%clk 0:03:01]}  d6 {[%clk 0:02:59]} 3. d4 {[%clk 0:03:01]}  cxd4 {[%clk 0:03:00]} 4. Nxd4 {[%clk 0:03:02]}  Nf6 {[%clk 0:03:00]} 5. Nc3 {[%clk 0:03:03]}  a6 {[%clk 0:03:01]} 6. Be3 {[%clk 0:03:03]}  e5 {[%clk 0:03:01]} 7. Nf3 {[%clk 0:03:04]}  h6 {[%clk 0:03:01]} 8. Bc4 {[%clk 0:03:04]}  Be6 {[%clk 0:03:02]} 9. Bb3 {[%clk 0:03:03]}  Nc6 {[%clk 0:02:56]} 10. h3 {[%clk 0:03:03]}  Be7 {[%clk 0:02:56]} 11. O-O {[%clk 0:03:03]}  O-O {[%clk 0:02:55]} 12. Qe2 {[%clk 0:02:57]}  Rc8 {[%clk 0:02:52]} 13. Rad1 {[%clk 0:02:57]}  Qc7 {[%clk 0:02:51]} 14. Nh4 {[%clk 0:02:46]}  Bxb3 {[%clk 0:02:01]} 15. axb3 {[%clk 0:02:34]}  Nxe4 {[%clk 0:01:29]} 16. Nxe4 {[%clk 0:02:29]}  Bxh4 {[%clk 0:01:27]} 17. Nxd6 {[%clk 0:02:07]}  Rcd8 {[%clk 0:01:17]} 18. Nf5 {[%clk 0:02:04]}  Bg5 {[%clk 0:01:13]} 19. Qg4 {[%clk 0:01:50]}  Rxd1 {[%clk 0:00:54]} 20. Rxd1 {[%clk 0:01:47]}  Rd8 {[%clk 0:00:54]} 21. Bxg5 {[%clk 0:01:19]}  Rxd1+ {[%clk 0:00:50]} 22. Qxd1 {[%clk 0:01:20]}  hxg5 {[%clk 0:00:51]} 23. Qd2 {[%clk 0:00:56]}  Qd8 {[%clk 0:00:43]} 24. Qe3 {[%clk 0:00:52]}  f6 {[%clk 0:00:38]} 25. Qe4 {[%clk 0:00:47]}  g6 {[%clk 0:00:33]} 26. Qc4+ {[%clk 0:00:45]}  Kh8 {[%clk 0:00:28]} 27. Ne3 {[%clk 0:00:44]}  Qd7 {[%clk 0:00:21]} 28. h4 {[%clk 0:00:42]}  gxh4 {[%clk 0:00:20]} 29. Qxh4+ {[%clk 0:00:42]}  Kg7 {[%clk 0:00:21]} 30. Ng4 {[%clk 0:00:41]}  Qf5 {[%clk 0:00:07]} 31. Qh6+ {[%clk 0:00:41]}  Kg8 {[%clk 0:00:07]} 32. f3 {[%clk 0:00:38]}  Ne7 {[%clk 0:00:07]} 33. Qd2 {[%clk 0:00:37]}  Kf7 {[%clk 0:00:07]} 34. Qd6 {[%clk 0:00:30]}  e4 {[%clk 0:00:01]} 35. Nh6+ {[%clk 0:00:30]} 1-0


[Site "https://www.chess.com"]

[Event "Titled Tuesday Blitz June 20 Early 2023"]
[White "Droin, Augustin"]
[Black "Kramnik, Vladimir"]
[WhiteFideId "45105987"]
[BlackFideId "4101588"]
[WhiteElo "2333"]
[BlackElo "2703"]
[Result "0-1"]
[Round "3"]
[TimeControl "180+2"]
[Date "2023.06.20"]
[WhiteClock "0:00:53"]
[BlackClock "0:01:34"]
[Board "70"]

1. e4 {[%clk 0:02:58]}  c5 {[%clk 0:02:59]} 2. Nf3 {[%clk 0:02:58]}  e6 {[%clk 0:02:59]} 3. d4 {[%clk 0:02:58]}  cxd4 {[%clk 0:02:59]} 4. Nxd4 {[%clk 0:02:59]}  a6 {[%clk 0:02:59]} 5. g3 {[%clk 0:03:00]}  d5 {[%clk 0:02:56]} 6. Nb3 {[%clk 0:02:58]}  dxe4 {[%clk 0:02:51]} 7. Qxd8+ {[%clk 0:02:59]}  Kxd8 {[%clk 0:02:50]} 8. N1d2 {[%clk 0:03:00]}  Nf6 {[%clk 0:02:44]} 9. f3 {[%clk 0:02:56]}  Nc6 {[%clk 0:02:41]} 10. Nxe4 {[%clk 0:02:49]}  Nxe4 {[%clk 0:02:40]} 11. fxe4 {[%clk 0:02:50]}  Bd6 {[%clk 0:02:32]} 12. Bg5+ {[%clk 0:02:44]}  f6 {[%clk 0:02:28]} 13. O-O-O {[%clk 0:02:44]}  Ke7 {[%clk 0:02:28]} 14. Be3 {[%clk 0:02:40]}  Ne5 {[%clk 0:02:15]} 15. Bb6 {[%clk 0:02:17]}  Bd7 {[%clk 0:02:10]} 16. Na5 {[%clk 0:02:16]}  Bc6 {[%clk 0:02:01]} 17. Nxc6+ {[%clk 0:02:12]}  Nxc6 {[%clk 0:02:01]} 18. Be2 {[%clk 0:01:53]}  Rac8 {[%clk 0:02:00]} 19. c3 {[%clk 0:01:48]}  Ne5 {[%clk 0:01:55]} 20. Bd4 {[%clk 0:01:30]}  h5 {[%clk 0:01:55]} 21. h4 {[%clk 0:01:19]}  Nc6 {[%clk 0:01:50]} 22. Rhg1 {[%clk 0:01:14]}  Nxd4 {[%clk 0:01:48]} 23. Rxd4 {[%clk 0:01:14]}  Bc5 {[%clk 0:01:48]} 24. Kd2 {[%clk 0:01:12]}  Bxd4 {[%clk 0:01:48]} 25. cxd4 {[%clk 0:01:13]}  Rhd8 {[%clk 0:01:47]} 26. Ke3 {[%clk 0:01:12]}  Rc2 {[%clk 0:01:46]} 27. Bf3 {[%clk 0:01:12]}  Rxb2 {[%clk 0:01:45]} 28. Bxh5 {[%clk 0:01:12]}  Rxa2 {[%clk 0:01:44]} 29. Rb1 {[%clk 0:01:12]}  Ra3+ {[%clk 0:01:42]} 30. Kf4 {[%clk 0:01:12]}  b5 {[%clk 0:01:36]} 31. Be2 {[%clk 0:00:53]}  Rxd4 {[%clk 0:01:34]} 0-1


[Site "https://www.chess.com"]

[Event "Titled Tuesday Blitz June 20 Early 2023"]
[White "Tokhirjonova, Gulrukhbegim"]
[Black "Indjic, Aleksandar"]
[WhiteFideId "14203626"]
[BlackFideId "911925"]
[WhiteElo "2265"]
[BlackElo "2614"]
[Result "0-1"]
[Round "3"]
[TimeControl "180+2"]
[Date "2023.06.20"]
[WhiteClock "0:00:03"]
[BlackClock "0:00:41"]
[Board "72"]

1. e4 {[%clk 0:02:57]}  e5 {[%clk 0:03:00]} 2. Nf3 {[%clk 0:02:52]}  Nc6 {[%clk 0:03:00]} 3. Bb5 {[%clk 0:02:51]}  Bc5 {[%clk 0:02:59]} 4. O-O {[%clk 0:02:48]}  d6 {[%clk 0:02:58]} 5. c3 {[%clk 0:02:48]}  a6 {[%clk 0:02:57]} 6. Ba4 {[%clk 0:02:47]}  Bg4 {[%clk 0:02:56]} 7. h3 {[%clk 0:02:47]}  Bh5 {[%clk 0:02:55]} 8. d4 {[%clk 0:02:42]}  Bxf3 {[%clk 0:02:53]} 9. gxf3 {[%clk 0:02:39]}  Ba7 {[%clk 0:02:52]} 10. Be3 {[%clk 0:02:27]}  b5 {[%clk 0:02:49]} 11. Bb3 {[%clk 0:02:27]}  Nge7 {[%clk 0:02:42]} 12. Kh2 {[%clk 0:02:24]}  O-O {[%clk 0:02:41]} 13. Rg1 {[%clk 0:02:23]}  Kh8 {[%clk 0:02:40]} 14. dxe5 {[%clk 0:02:06]}  dxe5 {[%clk 0:02:19]} 15. a4 {[%clk 0:01:47]}  Bxe3 {[%clk 0:02:10]} 16. fxe3 {[%clk 0:01:47]}  Qb8 {[%clk 0:02:07]} 17. axb5 {[%clk 0:01:45]}  axb5 {[%clk 0:02:06]} 18. Rxa8 {[%clk 0:01:45]}  Qxa8 {[%clk 0:02:07]} 19. Na3 {[%clk 0:01:44]}  Qa5 {[%clk 0:02:05]} 20. Qd7 {[%clk 0:01:29]}  Qb6 {[%clk 0:02:02]} 21. Qd3 {[%clk 0:01:18]}  b4 {[%clk 0:01:56]} 22. Nc4 {[%clk 0:01:16]}  Qc5 {[%clk 0:01:56]} 23. f4 {[%clk 0:01:00]}  Rd8 {[%clk 0:01:53]} 24. Qe2 {[%clk 0:00:57]}  bxc3 {[%clk 0:01:53]} 25. bxc3 {[%clk 0:00:58]}  Rb8 {[%clk 0:01:45]} 26. Ba4 {[%clk 0:00:47]}  exf4 {[%clk 0:01:42]} 27. exf4 {[%clk 0:00:47]}  Ng6 {[%clk 0:01:43]} 28. Rf1 {[%clk 0:00:29]}  Na5 {[%clk 0:01:40]} 29. Nxa5 {[%clk 0:00:28]}  Qxa5 {[%clk 0:01:41]} 30. Qc4 {[%clk 0:00:23]}  Rb2+ {[%clk 0:01:37]} 31. Kh1 {[%clk 0:00:23]}  Qh5 {[%clk 0:01:36]} 32. Bd7 {[%clk 0:00:20]}  h6 {[%clk 0:00:50]} 33. Qxf7 {[%clk 0:00:18]}  Qe2 {[%clk 0:00:44]} 34. Qe8+ {[%clk 0:00:08]}  Kh7 {[%clk 0:00:44]} 35. Qxg6+ {[%clk 0:00:03]}  Kxg6 {[%clk 0:00:43]} 36. Rg1+ {[%clk 0:00:03]}  Kf7 {[%clk 0:00:41]} 0-1


[Site "https://www.chess.com"]

[Event "Titled Tuesday Blitz June 20 Early 2023"]
[White "angelgab3"]
[Black "Nogerbek, Kazybek"]
[BlackFideId "13710427"]
[WhiteElo "2509"]
[BlackElo "2498"]
[Result "0-1"]
[Round "3"]
[TimeControl "180+2"]
[Date "2023.06.20"]
[WhiteClock "0:00:34"]
[BlackClock "0:01:37"]
[Board "74"]

1. e4 {[%clk 0:02:59]}  d5 {[%clk 0:02:56]} 2. exd5 {[%clk 0:02:59]}  Qxd5 {[%clk 0:02:56]} 3. Nc3 {[%clk 0:02:59]}  Qa5 {[%clk 0:02:57]} 4. d4 {[%clk 0:02:59]}  Nf6 {[%clk 0:02:57]} 5. Nf3 {[%clk 0:02:59]}  Nc6 {[%clk 0:02:58]} 6. Bb5 {[%clk 0:02:52]}  Bd7 {[%clk 0:02:57]} 7. O-O {[%clk 0:02:50]}  a6 {[%clk 0:02:57]} 8. Bc4 {[%clk 0:02:43]}  Bg4 {[%clk 0:02:55]} 9. h3 {[%clk 0:02:39]}  Bh5 {[%clk 0:02:53]} 10. Bd2 {[%clk 0:02:28]}  Nxd4 {[%clk 0:02:41]} 11. Ne4 {[%clk 0:01:38]}  Nxf3+ {[%clk 0:02:35]} 12. gxf3 {[%clk 0:01:36]}  Qf5 {[%clk 0:02:32]} 13. Ng3 {[%clk 0:01:36]}  Qxh3 {[%clk 0:02:28]} 14. Nxh5 {[%clk 0:01:35]}  Qxh5 {[%clk 0:02:28]} 15. Bf4 {[%clk 0:01:33]}  e6 {[%clk 0:02:18]} 16. Re1 {[%clk 0:01:32]}  Rd8 {[%clk 0:02:17]} 17. Qe2 {[%clk 0:01:31]}  Bd6 {[%clk 0:02:18]} 18. Bxe6 {[%clk 0:01:14]}  O-O {[%clk 0:02:06]} 19. Bg4 {[%clk 0:01:06]}  Qg6 {[%clk 0:02:06]} 20. Bxd6 {[%clk 0:01:04]}  Rxd6 {[%clk 0:02:07]} 21. Kh1 {[%clk 0:01:02]}  Nd5 {[%clk 0:02:03]} 22. Rad1 {[%clk 0:00:56]}  h5 {[%clk 0:01:38]} 23. Bh3 {[%clk 0:00:35]}  Nf4 {[%clk 0:01:38]} 24. Qf1 {[%clk 0:00:35]}  Rxd1 {[%clk 0:01:37]} 25. Rxd1 {[%clk 0:00:34]}  Qxc2 {[%clk 0:01:37]} 0-1


[Site "https://www.chess.com"]

[Event "Titled Tuesday Blitz June 20 Early 2023"]
[White "Akylbek2021"]
[Black "Eljanov, Pavel"]
[BlackFideId "14102951"]
[WhiteElo "2508"]
[BlackElo "2598"]
[Result "1/2-1/2"]
[Round "3"]
[TimeControl "180+2"]
[Date "2023.06.20"]
[WhiteClock "0:00:36"]
[BlackClock "0:00:09"]
[Board "75"]

1. e4 {[%clk 0:03:00]}  c6 {[%clk 0:03:00]} 2. d4 {[%clk 0:02:59]}  d5 {[%clk 0:03:01]} 3. Nc3 {[%clk 0:03:00]}  dxe4 {[%clk 0:03:00]} 4. Nxe4 {[%clk 0:03:00]}  Bf5 {[%clk 0:03:00]} 5. Ng3 {[%clk 0:03:01]}  Bg6 {[%clk 0:03:01]} 6. h4 {[%clk 0:03:00]}  h6 {[%clk 0:03:01]} 7. h5 {[%clk 0:03:00]}  Bh7 {[%clk 0:03:00]} 8. Nf3 {[%clk 0:03:00]}  Nf6 {[%clk 0:03:00]} 9. Bd3 {[%clk 0:03:00]}  Bxd3 {[%clk 0:02:57]} 10. Qxd3 {[%clk 0:03:01]}  e6 {[%clk 0:02:57]} 11. Bf4 {[%clk 0:03:02]}  Qa5+ {[%clk 0:02:57]} 12. c3 {[%clk 0:03:00]}  Nbd7 {[%clk 0:02:55]} 13. Ne4 {[%clk 0:02:54]}  Nxe4 {[%clk 0:02:52]} 14. Qxe4 {[%clk 0:02:55]}  Nf6 {[%clk 0:02:51]} 15. Qd3 {[%clk 0:02:51]}  Nxh5 {[%clk 0:02:44]} 16. Be5 {[%clk 0:02:44]}  Nf6 {[%clk 0:02:42]} 17. Ng5 {[%clk 0:02:32]}  Nd7 {[%clk 0:02:02]} 18. f4 {[%clk 0:01:55]}  Qd5 {[%clk 0:01:25]} 19. O-O-O {[%clk 0:01:43]}  Nxe5 {[%clk 0:01:09]} 20. fxe5 {[%clk 0:01:43]}  Be7 {[%clk 0:01:09]} 21. Ne4 {[%clk 0:01:37]}  Qxa2 {[%clk 0:01:09]} 22. Qg3 {[%clk 0:01:30]}  g6 {[%clk 0:00:53]} 23. Qf4 {[%clk 0:01:22]}  h5 {[%clk 0:00:49]} 24. g4 {[%clk 0:01:14]}  h4 {[%clk 0:00:45]} 25. g5 {[%clk 0:01:14]}  Rf8 {[%clk 0:00:38]} 26. Rxh4 {[%clk 0:01:05]}  Qa1+ {[%clk 0:00:27]} 27. Kc2 {[%clk 0:01:05]}  Qa4+ {[%clk 0:00:27]} 28. Kc1 {[%clk 0:01:05]}  Rd8 {[%clk 0:00:22]} 29. Rh7 {[%clk 0:01:01]}  c5 {[%clk 0:00:15]} 30. d5 {[%clk 0:00:51]}  Qa1+ {[%clk 0:00:09]} 31. Kc2 {[%clk 0:00:51]}  Qa4+ {[%clk 0:00:09]} 32. Kc1 {[%clk 0:00:42]}  Qa1+ {[%clk 0:00:09]} 33. Kc2 {[%clk 0:00:41]}  Qa4+ {[%clk 0:00:09]} 34. Kc1 {[%clk 0:00:36]} 1/2-1/2


[Site "https://www.chess.com"]

[Event "Titled Tuesday Blitz June 20 Early 2023"]
[White "Babazada, Khazar"]
[Black "Kuzmin, Roman"]
[WhiteFideId "13413554"]
[BlackFideId "44134932"]
[WhiteElo "2369"]
[BlackElo "2122"]
[Result "0-1"]
[Round "3"]
[TimeControl "180+2"]
[Date "2023.06.20"]
[WhiteClock "0:00:00"]
[BlackClock "0:00:08"]
[Board "76"]

1. e4 {[%clk 0:03:00]}  c5 {[%clk 0:02:59]} 2. Nf3 {[%clk 0:03:00]}  d6 {[%clk 0:03:00]} 3. d4 {[%clk 0:03:00]}  cxd4 {[%clk 0:03:01]} 4. Nxd4 {[%clk 0:03:01]}  Nf6 {[%clk 0:03:01]} 5. Nc3 {[%clk 0:03:02]}  a6 {[%clk 0:03:02]} 6. Be2 {[%clk 0:03:03]}  e5 {[%clk 0:03:02]} 7. Nb3 {[%clk 0:03:03]}  Be7 {[%clk 0:03:02]} 8. g4 {[%clk 0:03:04]}  h6 {[%clk 0:02:56]} 9. h4 {[%clk 0:02:58]}  Nh7 {[%clk 0:02:56]} 10. g5 {[%clk 0:02:53]}  Nf8 {[%clk 0:02:40]} 11. gxh6 {[%clk 0:02:43]}  gxh6 {[%clk 0:02:41]} 12. Nd5 {[%clk 0:02:43]}  Be6 {[%clk 0:02:39]} 13. Be3 {[%clk 0:02:44]}  Nbd7 {[%clk 0:02:33]} 14. Bg4 {[%clk 0:02:44]}  Bxd5 {[%clk 0:02:30]} 15. exd5 {[%clk 0:02:38]}  Bxh4 {[%clk 0:02:26]} 16. Qf3 {[%clk 0:02:24]}  Bg5 {[%clk 0:02:22]} 17. O-O-O {[%clk 0:02:24]}  Ng6 {[%clk 0:02:20]} 18. Nd2 {[%clk 0:02:16]}  Nh4 {[%clk 0:02:10]} 19. Qh3 {[%clk 0:02:12]}  Nf6 {[%clk 0:02:06]} 20. f4 {[%clk 0:02:04]}  exf4 {[%clk 0:01:59]} 21. Bd4 {[%clk 0:02:04]}  Qa5 {[%clk 0:01:56]} 22. Nc4 {[%clk 0:02:02]}  Qxa2 {[%clk 0:01:53]} 23. Rhe1+ {[%clk 0:01:34]}  Kf8 {[%clk 0:01:51]} 24. Nb6 {[%clk 0:01:35]}  f3+ {[%clk 0:01:44]} 25. Re3 {[%clk 0:01:29]}  Re8 {[%clk 0:01:34]} 26. Re1 {[%clk 0:00:51]}  f2 {[%clk 0:01:28]} 27. Rf1 {[%clk 0:00:48]}  Nxg4 {[%clk 0:01:22]} 28. Qxg4 {[%clk 0:00:44]}  Qa1+ {[%clk 0:01:21]} 29. Kd2 {[%clk 0:00:44]}  Qxf1 {[%clk 0:01:22]} 30. Nd7+ {[%clk 0:00:41]}  Kg8 {[%clk 0:01:17]} 31. Nf6+ {[%clk 0:00:39]}  Kf8 {[%clk 0:01:15]} 32. Nd7+ {[%clk 0:00:36]}  Kg8 {[%clk 0:01:15]} 33. Nf6+ {[%clk 0:00:32]}  Kg7 {[%clk 0:01:16]} 34. Nxe8+ {[%clk 0:00:22]}  Kg6 {[%clk 0:01:16]} 35. Qe4+ {[%clk 0:00:19]}  f5 {[%clk 0:01:11]} 36. Qe6+ {[%clk 0:00:17]}  Kh5 {[%clk 0:01:12]} 37. Kc3 {[%clk 0:00:14]}  Bxe3 {[%clk 0:00:42]} 38. Nf6+ {[%clk 0:00:13]}  Kg6 {[%clk 0:00:34]} 39. Nh7+ {[%clk 0:00:09]}  Kh5 {[%clk 0:00:31]} 40. Nf6+ {[%clk 0:00:08]}  Kg6 {[%clk 0:00:28]} 41. Ne4+ {[%clk 0:00:06]}  Kh5 {[%clk 0:00:27]} 42. Ng3+ {[%clk 0:00:07]}  Kg4 {[%clk 0:00:27]} 43. Nxf1 {[%clk 0:00:07]}  Bxd4+ {[%clk 0:00:27]} 44. Kxd4 {[%clk 0:00:08]}  Nf3+ {[%clk 0:00:22]} 45. Ke3 {[%clk 0:00:08]}  Ng5 {[%clk 0:00:22]} 46. Qd7 {[%clk 0:00:04]}  Rf8 {[%clk 0:00:08]} 47. Kxf2 {[%clk 0:00:03]}  Rf7 {[%clk 0:00:07]} 48. Nh2+ {[%clk 0:00:03]}  Kh3 {[%clk 0:00:07]} 49. Qe6 {[%clk 0:00:02]}  Nxe6 {[%clk 0:00:07]} 50. dxe6 {[%clk 0:00:02]}  Re7 {[%clk 0:00:07]} 51. Nf3 {[%clk 0:00:02]}  Rxe6 {[%clk 0:00:07]} 52. Nd4 {[%clk 0:00:01]}  Re4 {[%clk 0:00:08]} 53. Nxf5 {[%clk 0:00:00]}  Rf4+ {[%clk 0:00:08]} 0-1


[Site "https://www.chess.com"]

[Event "Titled Tuesday Blitz June 20 Early 2023"]
[White "Kochiev, Ivan"]
[Black "Grigoriants, Sergey"]
[WhiteFideId "2917890"]
[BlackFideId "4130804"]
[WhiteElo "2287"]
[BlackElo "2502"]
[Result "0-1"]
[Round "3"]
[TimeControl "180+2"]
[Date "2023.06.20"]
[WhiteClock "0:00:07"]
[BlackClock "0:00:10"]
[Board "77"]

1. e4 {[%clk 0:03:00]}  c5 {[%clk 0:02:56]} 2. Nf3 {[%clk 0:03:01]}  Nc6 {[%clk 0:02:56]} 3. d4 {[%clk 0:02:59]}  cxd4 {[%clk 0:02:56]} 4. Nxd4 {[%clk 0:03:00]}  Nf6 {[%clk 0:02:54]} 5. Nc3 {[%clk 0:03:00]}  e5 {[%clk 0:02:54]} 6. Ndb5 {[%clk 0:02:58]}  d6 {[%clk 0:02:54]} 7. Bg5 {[%clk 0:02:58]}  a6 {[%clk 0:02:55]} 8. Na3 {[%clk 0:02:58]}  b5 {[%clk 0:02:55]} 9. Nd5 {[%clk 0:02:58]}  Be7 {[%clk 0:02:56]} 10. Bxf6 {[%clk 0:02:59]}  Bxf6 {[%clk 0:02:56]} 11. c4 {[%clk 0:02:58]}  b4 {[%clk 0:02:56]} 12. Nc2 {[%clk 0:02:59]}  Rb8 {[%clk 0:02:56]} 13. b3 {[%clk 0:02:50]}  Bg5 {[%clk 0:02:56]} 14. Be2 {[%clk 0:02:43]}  O-O {[%clk 0:02:56]} 15. O-O {[%clk 0:02:43]}  Kh8 {[%clk 0:02:56]} 16. Bg4 {[%clk 0:02:25]}  Be6 {[%clk 0:02:53]} 17. Nce3 {[%clk 0:02:21]}  g6 {[%clk 0:02:50]} 18. Qd3 {[%clk 0:02:12]}  Qd7 {[%clk 0:02:46]} 19. Be2 {[%clk 0:02:05]}  f5 {[%clk 0:02:36]} 20. Rfd1 {[%clk 0:02:02]}  Qa7 {[%clk 0:02:13]} 21. exf5 {[%clk 0:01:35]}  gxf5 {[%clk 0:02:12]} 22. a3 {[%clk 0:01:35]}  f4 {[%clk 0:01:40]} 23. Nf1 {[%clk 0:01:18]}  Bf5 {[%clk 0:01:30]} 24. Qf3 {[%clk 0:01:14]}  e4 {[%clk 0:00:49]} 25. Qh5 {[%clk 0:01:12]}  Qg7 {[%clk 0:00:49]} 26. Bg4 {[%clk 0:01:03]}  bxa3 {[%clk 0:00:20]} 27. Rxa3 {[%clk 0:00:45]}  Bxg4 {[%clk 0:00:20]} 28. Qxg4 {[%clk 0:00:45]}  Ne5 {[%clk 0:00:21]} 29. Qh5 {[%clk 0:00:35]}  f3 {[%clk 0:00:21]} 30. g3 {[%clk 0:00:33]}  Rg8 {[%clk 0:00:10]} 31. Rxa6 {[%clk 0:00:33]}  Rxb3 {[%clk 0:00:10]} 32. Rxd6 {[%clk 0:00:29]}  Nxc4 {[%clk 0:00:10]} 33. Re6 {[%clk 0:00:22]}  Rd3 {[%clk 0:00:09]} 34. Rxd3 {[%clk 0:00:19]}  exd3 {[%clk 0:00:10]} 35. Qxf3 {[%clk 0:00:20]}  d2 {[%clk 0:00:11]} 36. Rc6 {[%clk 0:00:18]}  Qd4 {[%clk 0:00:10]} 37. Nc3 {[%clk 0:00:12]}  Ne5 {[%clk 0:00:10]} 38. Qd1 {[%clk 0:00:07]}  Nxc6 {[%clk 0:00:10]} 0-1


[Site "https://www.chess.com"]

[Event "Titled Tuesday Blitz June 20 Early 2023"]
[White "Zheenbekov, Nurgazy"]
[Black "Kovalenko, Igor"]
[WhiteFideId "13800485"]
[BlackFideId "14117908"]
[WhiteElo "1975"]
[BlackElo "2574"]
[Result "0-1"]
[Round "3"]
[TimeControl "180+2"]
[Date "2023.06.20"]
[WhiteClock "0:00:00"]
[BlackClock "0:02:05"]
[Board "80"]

1. e4 {[%clk 0:02:59]}  d5 {[%clk 0:03:00]} 2. exd5 {[%clk 0:02:59]}  Qxd5 {[%clk 0:03:00]} 3. Nc3 {[%clk 0:02:58]}  Qa5 {[%clk 0:03:01]} 4. d4 {[%clk 0:02:57]}  Nf6 {[%clk 0:03:01]} 5. Nf3 {[%clk 0:02:57]}  c6 {[%clk 0:03:00]} 6. Be2 {[%clk 0:02:55]}  Bf5 {[%clk 0:02:59]} 7. O-O {[%clk 0:02:55]}  e6 {[%clk 0:02:59]} 8. a3 {[%clk 0:02:48]}  Nbd7 {[%clk 0:02:59]} 9. Bf4 {[%clk 0:02:48]}  Be7 {[%clk 0:02:49]} 10. b4 {[%clk 0:02:39]}  Qd8 {[%clk 0:02:49]} 11. Nh4 {[%clk 0:02:34]}  Bg6 {[%clk 0:02:48]} 12. Nxg6 {[%clk 0:02:34]}  hxg6 {[%clk 0:02:48]} 13. h3 {[%clk 0:02:31]}  Nd5 {[%clk 0:02:48]} 14. Bd2 {[%clk 0:02:08]}  N7f6 {[%clk 0:02:47]} 15. Na4 {[%clk 0:02:02]}  Qc7 {[%clk 0:02:29]} 16. Nc5 {[%clk 0:01:54]}  b6 {[%clk 0:02:28]} 17. Na6 {[%clk 0:01:45]}  Qb7 {[%clk 0:02:27]} 18. c4 {[%clk 0:01:44]}  Nc7 {[%clk 0:02:25]} 19. Nxc7+ {[%clk 0:01:39]}  Qxc7 {[%clk 0:02:26]} 20. Bf3 {[%clk 0:01:39]}  Rd8 {[%clk 0:02:25]} 21. Be3 {[%clk 0:01:29]}  e5 {[%clk 0:02:17]} 22. Qa4 {[%clk 0:01:26]}  e4 {[%clk 0:02:17]} 23. Be2 {[%clk 0:01:19]}  O-O {[%clk 0:02:16]} 24. f3 {[%clk 0:00:59]}  Rfe8 {[%clk 0:02:11]} 25. fxe4 {[%clk 0:00:49]}  Nxe4 {[%clk 0:02:11]} 26. Bf3 {[%clk 0:00:38]}  Bf6 {[%clk 0:02:07]} 27. Qc2 {[%clk 0:00:33]}  Ng3 {[%clk 0:02:06]} 28. Rfe1 {[%clk 0:00:31]}  Rxe3 {[%clk 0:02:06]} 29. Rxe3 {[%clk 0:00:31]}  Bxd4 {[%clk 0:02:06]} 30. Re1 {[%clk 0:00:00]}  Nf5 {[%clk 0:02:05]} 0-1


[Site "https://www.chess.com"]